fUSD/lending_fUSD_20251120
["ID","MTS","AMOUNT","RATE_DAILY","PERIOD"]
[394504400,1763644232333,-500.0,0.00016438,2]
[394504402,1763644232344,-500.0,0.00016438,2]
[394504404,1763644232354,-500.0,0.00016438,2]
[394504406,1763644232364,-500.0,0.00016438,2]
[394504408,1763644232374,-500.0,0.00016438,2]
[394504410,1763644232384,-569.62347904,0.00016438,2]
[394504412,1763644232394,-500.0,0.00016438,2]
[394504414,1763644232404,-500.0,0.00016438,2]
[394504416,1763644232414,-500.0,0.00016438,2]
[394504419,1763644232427,-500.0,0.00016438,2]
[394504420,1763644232436,-500.0,0.00016438,2]
[394504421,1763644232445,-500.0,0.00016438,2]
[394504422,1763644232455,-500.0,0.00016438,2]
[394504423,1763644232464,-500.0,0.00016438,2]
[394504424,1763644232473,-499.99999999,0.00016438,2]
[394504425,1763644232482,-500.0,0.00016438,2]
[394504426,1763644232493,-503.55891604,0.00016473,2]
[394504427,1763644232502,-500.0,0.00016482,2]
[394504428,1763644232511,-500.0,0.00016482,2]
[394504429,1763644232521,-500.0,0.00016482,2]
[394504430,1763644232530,-500.0,0.00016482,2]
[394504431,1763644232539,-500.0,0.00016482,2]
[394504432,1763644232550,-1336.87,0.00016482,2]
[394504434,1763644232559,-200.0,0.00016503,2]
[394504436,1763644232568,-200.0,0.00016503,2]
[394504438,1763644232578,-499.0,0.00016549,2]
[394504440,1763644232587,-200.0,0.00016564,2]
[394504442,1763644232596,-499.0,0.00016577,2]
[394504444,1763644232606,-499.0,0.00016594,2]
[394504446,1763644232616,-200.0,0.00016668,2]
[394504448,1763644232625,-200.0,0.00016668,2]
[394504450,1763644232635,-1000.0,0.00016821,2]
[394504452,1763644232645,-500.0,0.00016821,2]
[394504454,1763644232655,-1000.0,0.00016821,2]
[394504456,1763644232664,-500.0,0.00016821,2]
[394504458,1763644232674,-244.42,0.00016829,2]
[394504460,1763644232683,-499.0,0.00016849,2]
[394504462,1763644232693,-499.0,0.00016852,2]
[394504464,1763644232702,-166.89958005,0.000169,2]
[394504466,1763644232712,-499.0,0.00016923,2]
[394504468,1763644232722,-166.66,0.0001694,2]
[394504470,1763644232731,-1052.4,0.0001699,2]
[394504472,1763644232741,-2069.401,0.00016999,2]
[394504474,1763644232751,-179.355,0.00016999,2]
[394504476,1763644232761,-2000.0,0.00017,2]
[394504478,1763644232771,-2000.0,0.00017,2]
[394504480,1763644232781,-250.0,0.00017,2]
[394504482,1763644232791,-499.0,0.00017049,2]
[394504485,1763644232802,-499.0,0.00017054,2]
[394504486,1763644232826,-900.0,0.000172,3]
[394504487,1763644232837,-499.0,0.00017222,2]
[394504488,1763644232848,-499.0,0.00017338,2]
[394504489,1763644232858,-499.0,0.00017367,2]
[394504490,1763644232869,-1500.0,0.00017368,2]
[394504491,1763644232879,-499.0,0.000174,2]
[394504492,1763644232890,-420.0,0.00017404,2]
[394504493,1763644232901,-253.0,0.00017434,2]
[394504494,1763644232912,-499.0,0.00017435,2]
[394504495,1763644232923,-499.0,0.00017452,2]
[394504496,1763644232933,-499.0,0.0001747,2]
[394504497,1763644232944,-1680.0,0.00017492,2]
[394504498,1763644232954,-166.66,0.000175,2]
[394504499,1763644232964,-2500.0,0.0001751,2]
[394504500,1763644232974,-200.0,0.0001751,2]
[394504501,1763644232985,-200.0,0.0001751,2]
[394504502,1763644232997,-200.0,0.0001751,2]
[394504503,1763644233007,-200.0,0.0001751,2]
[394504504,1763644233018,-300.0,0.0001751,2]
[394504505,1763644233028,-300.0,0.0001751,2]
[394504506,1763644233038,-300.0,0.0001751,2]
[394504507,1763644233051,-300.0,0.0001751,2]
[394504508,1763644233062,-300.0,0.0001751,2]
[394504509,1763644233073,-363.96324846,0.0001751,2]
[394504510,1763644233084,-250.0,0.0001751,2]
[394504511,1763644233095,-250.0,0.0001751,2]
[394504512,1763644233106,-300.0,0.0001751,2]
[394504513,1763644233116,-952.18,0.0001751,2]
[394504514,1763644233128,-499.0,0.00017512,2]
[394504515,1763644233139,-926.54450684,0.00017532,2]
[394504516,1763644233149,-222.41932101,0.0001754,2]
[394504517,1763644233163,-1000.0,0.00017608,2]
[394504518,1763644233174,-1000.0,0.00017624,2]
[394504519,1763644233185,-488.66415841,0.00017627,2]
[394504520,1763644233196,-300.0,0.0001766,2]
[394504521,1763644233207,-300.0,0.00017664,2]
[394504522,1763644233217,-300.0,0.0001767,2]
[394504523,1763644233228,-300.0,0.00017678,2]
[394504524,1763644233238,-300.0,0.0001769,2]
[394504525,1763644233250,-300.0,0.00017692,2]
[394504526,1763644233261,-300.0,0.00017696,2]
[394504527,1763644233272,-300.0,0.000177,2]
[394504528,1763644233282,-1215.0,0.000177,2]
[394504529,1763644233293,-300.0,0.00017704,2]
[394504530,1763644233303,-300.0,0.00017704,2]
[394504531,1763644233313,-877.15026966,0.00017725,2]
[394504532,1763644233324,-300.0,0.00017726,2]
[394504533,1763644233334,-1000.0,0.00017728,2]
[394504534,1763644233344,-150.0,0.0001773,2]
[394504535,1763644233354,-300.0,0.0001773,2]
[394504536,1763644233364,-300.0,0.0001773,2]
[394504537,1763644233375,-300.0,0.0001773,2]
[394504538,1763644233386,-300.0,0.0001773,2]
[394504539,1763644233396,-300.0,0.00017731,2]
[394504540,1763644233406,-300.0,0.00017732,2]
[394504541,1763644233417,-306.56418248,0.00017735,2]
[394504542,1763644233427,-300.0,0.00017736,2]
[394504543,1763644233436,-300.0,0.00017739,2]
[394504544,1763644233448,-300.0,0.00017741,2]
[394504545,1763644233459,-300.0,0.00017741,2]
[394504546,1763644233469,-300.0,0.00017753,2]
[394504547,1763644233479,-300.0,0.00017755,2]
[394504548,1763644233490,-300.0,0.00017764,2]
[394504549,1763644233502,-300.0,0.00017768,2]
[394504550,1763644233513,-300.0,0.00017769,2]
[394504551,1763644233527,-500.0,0.00017773,2]
[394504552,1763644233538,-166.14719998,0.00017773,2]
[394504553,1763644233549,-500.0,0.00017773,2]
[394504554,1763644233559,-297.28368691,0.00017773,2]
[394504555,1763644233569,-206.44087778,0.00017773,2]
[394504556,1763644233580,-500.0,0.00017773,2]
[394504557,1763644233591,-526.79019395,0.00017773,2]
[394504558,1763644233602,-300.0,0.00017775,2]
[394504559,1763644233613,-300.0,0.00017775,2]
[394504560,1763644233623,-300.0,0.00017778,2]
[394504561,1763644233634,-300.0,0.00017779,2]
[394504562,1763644233644,-300.0,0.0001778,2]
[394504563,1763644233654,-952.18,0.00017784,2]
[394504564,1763644233664,-300.0,0.00017794,2]
[394504565,1763644233674,-300.0,0.00017797,2]
[394504566,1763644233684,-300.0,0.00017798,2]
[394504567,1763644233695,-5175.0,0.000178,2]
[394504568,1763644233705,-300.0,0.000178,2]
[394504569,1763644233716,-200.0,0.000178,6]
[394504570,1763644233726,-300.0,0.00017802,2]
[394504571,1763644233737,-300.0,0.00017802,2]
[394504572,1763644233748,-300.0,0.00017802,2]
[394504573,1763644233759,-300.0,0.00017809,2]
[394504574,1763644233770,-300.0,0.0001781,2]
[394504575,1763644233780,-300.0,0.00017819,2]
[394504576,1763644233790,-300.0,0.00017819,2]
[394504577,1763644233801,-1040.3367,0.0001782,2]
[394504578,1763644233811,-1052.4,0.0001782,2]
[394504579,1763644233821,-300.0,0.00017821,2]
[394504580,1763644233832,-300.0,0.00017823,2]
[394504581,1763644233842,-300.0,0.00017825,2]
[394504582,1763644233852,-300.0,0.00017826,2]
[394504583,1763644233862,-4262.05411009,0.0001783,2]
[394504584,1763644233872,-63961.23801992,0.0001783,2]
[394504585,1763644233882,-300.0,0.00017831,2]
[394504586,1763644233896,-300.0,0.00017835,2]
[394504587,1763644233906,-300.0,0.00017837,2]
[394504588,1763644233916,-300.0,0.00017838,2]
[394504589,1763644234157,-300.0,0.00017839,2]
[394504590,1763644234167,-300.0,0.00017843,2]
[394504591,1763644234181,-300.0,0.00017858,2]
[394504592,1763644234191,-300.0,0.00017859,2]
[394504593,1763644234200,-370.70940116,0.00017861,2]
[394504594,1763644234210,-300.0,0.00017866,2]
[394504595,1763644234220,-300.0,0.00017867,2]
[394504596,1763644234230,-300.0,0.0001787,2]
[394504597,1763644234240,-500.0,0.00017873,2]
[394504598,1763644234251,-228.77234087,0.00017873,2]
[394504599,1763644234260,-502.10718948,0.00017873,2]
[394504600,1763644234270,-500.0,0.00017873,2]
[394504601,1763644234280,-226.74427698,0.00017873,2]
[394504602,1763644234289,-501.25798024,0.00017873,2]
[394504603,1763644234299,-500.49832064,0.00017873,2]
[394504604,1763644234309,-507.23583524,0.00017873,2]
[394504605,1763644234318,-481.70785925,0.00017873,2]
[394504606,1763644234328,-151.52945777,0.00017873,2]
[394504607,1763644234338,-1000.0,0.00017873,2]
[394504608,1763644234348,-1000.0,0.00017875,2]
[394504609,1763644234358,-300.0,0.00017875,2]
[394504610,1763644234367,-300.0,0.00017875,2]
[394504611,1763644234382,-300.0,0.00017877,2]
[394504612,1763644234391,-300.0,0.00017877,2]
[394504613,1763644234401,-300.0,0.00017878,2]
[394504614,1763644234411,-300.0,0.00017878,2]
[394504615,1763644234421,-300.0,0.0001788,2]
[394504616,1763644234431,-499.0,0.00017881,2]
[394504617,1763644234441,-300.0,0.00017881,2]
[394504618,1763644234450,-300.0,0.00017882,2]
[394504619,1763644234460,-314.15449718,0.0001789,2]
[394504620,1763644234470,-300.0,0.0001789,2]
[394504621,1763644234480,-300.0,0.00017891,2]
[394504622,1763644234489,-300.0,0.00017892,2]
[394504623,1763644234500,-300.0,0.00017892,2]
[394504624,1763644234509,-300.0,0.00017893,2]
[394504625,1763644234519,-300.0,0.00017894,2]
[394504626,1763644234530,-300.0,0.00017896,2]
[394504627,1763644234540,-300.0,0.00017896,2]
[394504628,1763644234550,-300.0,0.00017896,2]
[394504629,1763644234559,-300.0,0.00017896,2]
[394504630,1763644234569,-1052.4,0.00017898,2]
[394504631,1763644234582,-686.30483256,0.000179,2]
[394504632,1763644234592,-1186.0,0.000179,2]
[394504633,1763644234601,-500.0,0.000179,6]
[394504634,1763644234611,-4786.48054024,0.000179,2]
[394504635,1763644234621,-300.0,0.00017902,2]
[394504636,1763644234630,-300.0,0.00017903,2]
[394504637,1763644234640,-300.0,0.00017905,2]
[394504638,1763644234650,-300.0,0.00017906,2]
[394504639,1763644234660,-300.0,0.00017907,2]
[394504640,1763644234670,-300.0,0.00017908,2]
[394504641,1763644234680,-300.0,0.00017908,2]
[394504642,1763644234689,-300.0,0.00017909,2]
[394504643,1763644234699,-300.0,0.00017912,2]
[394504644,1763644234709,-300.0,0.00017913,2]
[394504645,1763644234719,-500.0,0.00017916,2]
[394504646,1763644234728,-300.0,0.00017917,2]
[394504647,1763644234738,-300.0,0.00017925,2]
[394504648,1763644234748,-300.0,0.00017927,2]
[394504649,1763644234757,-1040.3367,0.0001793,2]
[394504650,1763644234767,-300.0,0.0001793,2]
[394504651,1763644234777,-499.0,0.0001793,2]
[394504652,1763644234787,-300.0,0.00017934,2]
[394504653,1763644234796,-300.0,0.00017943,2]
[394504654,1763644234806,-300.0,0.00017946,2]
[394504655,1763644234815,-300.0,0.00017953,2]
[394504656,1763644234826,-300.0,0.0001796,2]
[394504657,1763644234836,-300.0,0.00017972,2]
[394504658,1763644234846,-300.0,0.00017973,2]
[394504659,1763644234855,-300.0,0.00017978,2]
[394504660,1763644234865,-6535.35883216,0.0001799,2]
[394504661,1763644234876,-295.37341803,0.0001799,2]
[394504662,1763644234884,-1052.4,0.0001799,2]
[394504663,1763644234893,-1052.4,0.0001799,2]
[394504664,1763644234902,-300.0,0.00017994,2]
[394504665,1763644234912,-500.0,0.00017999,2]
[394504666,1763644234921,-241.19030392,0.00017999,2]
[394504667,1763644234930,-500.0,0.00017999,2]
[394504668,1763644234940,-500.0,0.00017999,2]
[394504669,1763644234950,-500.0,0.00017999,2]
[394504670,1763644234959,-500.0,0.00017999,2]
[394504671,1763644234979,-500.0,0.00017999,2]
[394504672,1763644234994,-500.0,0.00017999,2]
[394504673,1763644235006,-500.0,0.00017999,2]
[394504674,1763644235017,-1336.87,0.00017999,2]
[394504675,1763644235028,-1336.87,0.00017999,2]
[394504676,1763644235039,-1336.87,0.00017999,2]
[394504677,1763644235051,-1336.87,0.00017999,2]
[394504678,1763644235063,-1336.87,0.00017999,2]
[394504679,1763644235073,-500.0,0.00017999,2]
[394504680,1763644235083,-630.01716056,0.00017999,2]
[394504681,1763644235093,-615.81300304,0.00017999,2]
[394504682,1763644235104,-352.96706536,0.00017999,2]
[394504683,1763644235114,-500.0,0.00017999,2]
[394504684,1763644235125,-500.0,0.00017999,2]
[394504685,1763644235137,-438.56872353,0.00017999,2]
[394504686,1763644235148,-500.0,0.00017999,2]
[394504687,1763644235159,-500.0,0.00017999,2]
[394504688,1763644235169,-36805.64389931,0.00018,2]
[394504689,1763644235189,-31967.98573888,0.00018,2]
[394504690,1763644235202,-827.1,0.00018,2]
[394504691,1763644235214,-13981.07939176,0.00018,2]
[394504692,1763644235228,-49370.37395781,0.00018,2]
[394504693,1763644235785,168.95,0.00012978,2]
[394504694,1763644235982,168.95,0.00014275,2]
[394504695,1763644236196,168.95,0.00015573,2]
[394504696,1763644237809,-168.95,0.00016871,2]
[394504697,1763644237819,-167.46190659,0.00017392,2]
[394504698,1763644237829,-217604.53428495,0.00018,2]
[394504699,1763644237842,-507.96196028,0.00018,2]
[394504700,1763644237854,-610.485,0.00018,2]
[394504701,1763644237866,-4712.18461572,0.00018,2]
[394504702,1763644237878,-585.20333733,0.00018,2]
[394504703,1763644237890,-428.64562151,0.00018,2]
[394504704,1763644237922,-813.8673398,0.00018,2]
[394504705,1763644237934,-1399.95,0.00018,2]
[394504706,1763644237983,-825.80335874,0.00018,2]
[394504708,1763644239861,-874.09012771,0.00018,2]
[394504709,1763644239873,-1905.66599118,0.00018,2]
[394504710,1763644239885,-619.66579649,0.00018,2]
[394504711,1763644239897,-2493.75422535,0.00018,2]
[394504712,1763644240286,-305.57387787,0.00018,2]
[394504713,1763644240302,-825.42952937,0.00018,2]
[394504715,1763644240314,-531.4325695,0.00018,2]
[394504717,1763644240325,-269.64355815,0.00018,2]
[394504725,1763644243573,-572.15544408,0.00018,2]
[394504726,1763644243587,-411.28608496,0.00018,2]
[394504737,1763644246249,-797592.41579762,0.00018,2]
[394504738,1763644246259,-153.0,0.00018,2]
[394504739,1763644246269,-153.0,0.00018,2]
[394504740,1763644246279,-151.0,0.00018,2]
[394504741,1763644246289,-1246.0,0.00018,2]
[394504742,1763644246298,-1246.0,0.00018,2]
[394504743,1763644246309,-151.0,0.00018,2]
[394504744,1763644246319,-1246.0,0.00018,2]
[394504745,1763644246329,-151.0,0.00018,2]
[394504746,1763644246339,-1246.0,0.00018,2]
[394504747,1763644246349,-151.0,0.00018,2]
[394504748,1763644246360,-1246.0,0.00018,2]
[394504749,1763644246370,-151.0,0.00018,2]
[394504750,1763644246381,-1246.0,0.00018,2]
[394504751,1763644246391,-151.0,0.00018,2]
[394504752,1763644246400,-153.0,0.00018,2]
[394504753,1763644246410,-1246.0,0.00018,2]
[394504754,1763644246420,-151.0,0.00018,2]
[394504755,1763644246430,-153.0,0.00018,2]
[394504756,1763644246440,-1246.0,0.00018,2]
[394504757,1763644246450,-151.0,0.00018,2]
[394504758,1763644246459,-1246.0,0.00018,2]
[394504759,1763644246468,-156.31033002,0.00018,2]
[394504760,1763644246478,-151.0,0.00018,2]
[394504761,1763644246487,-1246.0,0.00018,2]
[394504762,1763644246496,-151.0,0.00018,2]
[394504763,1763644246505,-1246.0,0.00018,2]
[394504764,1763644246515,-151.0,0.00018,2]
[394504765,1763644246524,-1246.0,0.00018,2]
[394504766,1763644246534,-151.0,0.00018,2]
[394504767,1763644246544,-1301.83786048,0.00018,2]
[394504768,1763644246553,-151.0,0.00018,2]
[394504769,1763644246563,-154.98088878,0.00018,2]
[394504770,1763644246574,-1029.0,0.0001801,2]
[394504771,1763644246584,-952.18,0.00018058,2]
[394504772,1763644246593,-166.66,0.00018059,2]
[394504773,1763644246603,-1029.0,0.00018063,2]
[394504774,1763644246613,-499.0,0.00018069,2]
[394504775,1763644246622,-800.43,0.00018082,2]
[394504777,1763644246632,-1029.0,0.00018092,2]
[394504779,1763644246642,-1029.0,0.000181,2]
[394504781,1763644246651,-1029.0,0.00018135,2]
[394504783,1763644246661,-1029.0,0.00018152,2]
[394504785,1763644246670,-168.95,0.00018169,2]
[394504787,1763644246680,-1040.3367,0.0001819,2]
[394504789,1763644246689,-902.0,0.000182,4]
[394504791,1763644246699,-1239.79,0.00018252,2]
[394504793,1763644246709,-1000.0,0.00018291,2]
[394504795,1763644246719,-952.18,0.00018332,2]
[394504797,1763644246728,-1040.3367,0.0001844,2]
[394504799,1763644246737,-168.21,0.00018464,2]
[394504801,1763644246746,-300.0,0.00018563,2]
[394504803,1763644246756,-952.18,0.00018606,2]
[394504804,1763644246766,-166.66,0.00018618,2]
[394504805,1763644246776,-1040.3367,0.0001869,2]
[394504806,1763644246787,-4057.54620997,0.00018711,2]
[394504807,1763644246796,-800.43,0.0001876,2]
[394504808,1763644246805,-952.18,0.0001888,2]
[394504809,1763644246814,-1040.3367,0.0001894,2]
[394504810,1763644246824,-300.0,0.00019,2]
[394504811,1763644246834,-587.0,0.0001903,2]
[394504812,1763644246843,-244.42,0.00019146,2]
[394504813,1763644246853,-952.18,0.00019154,2]
[394504814,1763644246864,-166.66,0.00019177,2]
[394504815,1763644246874,-200.0,0.00019178,2]
[394504816,1763644246884,-1075.0,0.00019222,2]
[394504817,1763644246894,-169.06,0.00019259,2]
[394504818,1763644246904,-17291.1215463,0.00019286,2]
[394504819,1763644246913,-952.19209479,0.00019428,2]
[394504820,1763644246923,-800.43,0.00019438,2]
[394504821,1763644246932,-168.95,0.00019467,2]
[394504822,1763644246942,-166.66,0.00019736,2]
[394504823,1763644246952,-168.21,0.00019783,2]
[394504824,1763644246962,-300.0,0.00019863,2]
[394504825,1763644246972,-800.0,0.000199,7]
[394504826,1763644246982,-500.0,0.0002,10]
[394504827,1763644246993,-3858.1707197,0.00020016,2]
[394504828,1763644247003,-800.43,0.00020116,2]
[394504829,1763644247015,-528.33,0.00020187,2]
[394504830,1763644247025,-313.73,0.0002019,2]
[394504831,1763644247035,-1239.79,0.0002028,2]
[394504832,1763644247045,-1000.0,0.00020324,2]
[394504833,1763644247060,-500.0,0.00020329,2]
[394504834,1763644247070,-1336.87,0.00020547,2]
[394504835,1763644247080,-190.3,0.00020548,2]
[394504836,1763644247092,-244.42,0.00020554,2]
[394504837,1763644247101,-2000.0,0.000207,2]
[394504838,1763644247111,-1000.0,0.000207,2]
[394504839,1763644247121,-169.06,0.00020784,2]
[394504840,1763644247131,-800.43,0.00020795,2]
[394504841,1763644247140,-4711.14540142,0.00020822,2]
[394504842,1763644247150,-167.46190659,0.00020887,2]
[394504843,1763644247160,-350.0,0.00021,2]
[394504844,1763644247170,-168.21,0.00021102,2]
[394504845,1763644247180,-4057.54620997,0.00021604,2]
[394504846,1763644247190,-686.30483252,0.00021892,2]
[394504847,1763644247199,-5000.0,0.00021918,2]
[394504848,1763644247209,-951.9,0.00021961,2]
[394504849,1763644247218,-723.416971,0.00022,2]
[394504850,1763644247228,-1239.79,0.00022308,2]
[394504851,1763644247238,-1000.0,0.00022356,2]
[394504852,1763644247248,-168.21,0.0002242,2]
[394504853,1763644247258,-1319.0,0.00022603,2]
[394504854,1763644247268,-3029.205,0.00022603,2]
[394504855,1763644247277,-575.0,0.00022603,2]
[394504856,1763644247286,-609.0,0.00022603,2]
[394504857,1763644247297,-794.0,0.00022603,2]
[394504858,1763644247306,-672.356,0.00022603,2]
[394504859,1763644247316,-1605.0,0.00022603,2]
[394504860,1763644247326,-1027.023,0.00022603,2]
[394504861,1763644247336,-561.0,0.00022603,2]
[394504862,1763644247346,-907.0,0.00022603,2]
[394504863,1763644247355,-150.0,0.00022669,2]
[394504864,1763644247365,-150.0,0.00022669,2]
[394504865,1763644247375,-150.0,0.00022669,2]
[394504866,1763644247384,-283.616,0.00022669,2]
[394504867,1763644247394,-150.816,0.00022669,2]
[394504868,1763644247403,-203.69,0.00022908,2]
[394504869,1763644247412,-169.06,0.00023205,2]
[394504870,1763644247422,-168.21,0.00023739,2]
[394504871,1763644247432,-203.69,0.00023854,2]
[394504872,1763644247441,-865.29780662,0.00024,19]
[394504873,1763644247451,-169.058,0.00024103,2]
[394504874,1763644247461,-479.55759781,0.00024239,2]
[394504875,1763644247475,-1239.79,0.00024336,2]
[394504876,1763644247485,-167.46190659,0.00024381,2]
[394504877,1763644247494,-1000.0,0.00024388,2]
[394504878,1763644247504,-2000.0,0.000244,2]
[394504879,1763644247514,-1000.0,0.000244,2]
[394504880,1763644247524,-4057.54620997,0.00024497,2]
[394504881,1763644247534,-1000.0,0.00024658,2]
[394504882,1763644247544,-751.86,0.00024658,30]
[394504883,1763644247553,-300.0,0.00024799,10]
[394504884,1763644247563,-300.0,0.00024799,10]
[394504885,1763644247573,-300.0,0.00024799,10]
[394504886,1763644247584,-1069.75936647,0.00024799,10]
[394504887,1763644247597,-500.0,0.00024799,2]
[394504888,1763644247768,-1336.87,0.00024799,2]
[394504889,1763644247779,-1336.87,0.00024799,2]
[394504890,1763644247790,-479762.840573,0.000248,3]
[394504891,1763644247800,-1069.75936646,0.00024899,10]
[394504892,1763644247810,-1336.87,0.00024899,2]
[394504893,1763644247819,-1336.87,0.00024899,2]
[394504894,1763644247830,-580491.655413,0.000249,3]
[394504895,1763644247840,-1251.3,0.000249,7]
[394504896,1763644247849,-150.0,0.00025,2]
[394504897,1763644247859,-150.0,0.00025,2]
[394504898,1763644247869,-150.0,0.00025,2]
[394504899,1763644247880,-150.0,0.00025,2]
[394504900,1763644247889,-150.0,0.00025,2]
[394504901,1763644247899,-150.0,0.00025,2]
[394504902,1763644247909,-244.876,0.00025,2]
[394504903,1763644247919,-795.955,0.00025603,2]
[394504904,1763644247930,-609.0,0.00025603,2]
[394504905,1763644247940,-521.349,0.00025603,2]
[394504906,1763644247950,-907.0,0.00025603,2]
[394504907,1763644247960,-150.0,0.00025669,2]
[394504908,1763644247970,-150.0,0.00025669,2]
[394504909,1763644247981,-151.0,0.000258,2]
[394504910,1763644247991,-314.15449718,0.00025878,2]
[394504911,1763644248001,-686.30483252,0.00025884,2]
[394504912,1763644248012,-528.33,0.00026676,2]
[394504913,1763644248021,-300.0,0.00027113,10]
[394504914,1763644248031,-248.80901275,0.00027113,10]
[394504915,1763644248040,-300.0,0.00027113,10]
[394504916,1763644248052,-155.50767714,0.00027369,2]
[394504917,1763644248063,-4057.54620997,0.0002739,2]
[394504918,1763644248073,-300.0,0.00027397,2]
[394504919,1763644248091,-500.0,0.00027397,5]
[394504920,1763644248102,-700.02,0.000274,2]
[394504921,1763644248112,-1905.32,0.00027671,2]
[394504922,1763644248122,-2000.0,0.000281,2]
[394504923,1763644248134,-394.17,0.000284,7]
[394504924,1763644248145,-207.25,0.000284,7]
[394504925,1763644248155,-314.15449718,0.00028541,2]
[394504926,1763644248164,-907.0,0.00028603,2]
[394504927,1763644248174,-1251.3,0.000287,7]
[394504928,1763644248183,-1000.0,0.00028935,2]
[394504929,1763644248194,-751.86,0.00029704,30]
[394504930,1763644248204,-686.30483252,0.00029877,2]
[394504931,1763644248214,-300.0,0.0003,10]
[394504932,1763644248224,-500.0,0.0003,30]
[394504933,1763644248234,-300.0,0.0003,10]
[394504934,1763644248243,-300.0,0.0003,10]
[394504935,1763644248253,-500.0,0.0003,10]
[394504936,1763644248264,-4057.54620997,0.00030282,2]
[394504937,1763644248275,-700.02,0.000307,2]
[394504938,1763644248288,-314.15449718,0.00031203,15]
[394504939,1763644248298,-240.87287161,0.00031207,2]
[394504940,1763644248308,-2000.0,0.000318,2]
[394504941,1763644248318,-188.48294184,0.00032877,7]
[394504942,1763644248327,-200.0,0.00032877,2]
[394504943,1763644248337,-1336.87,0.00032999,2]
[394504944,1763644248347,-217.91,0.00033,60]
[394504945,1763644248357,-161.0,0.00033,14]
[394504946,1763644248367,-2000.0,0.00033122,120]
[394504947,1763644248377,-1162.01,0.00033125,2]
[394504948,1763644248387,-528.33,0.00033165,2]
[394504949,1763644248397,-4057.54620997,0.00033175,2]
[394504950,1763644248407,-700.02,0.000332,2]
[394504951,1763644248417,-1251.3,0.000332,14]
[394504952,1763644248427,-200.0,0.00033206,2]
[394504953,1763644248437,-200.0,0.00033538,2]
[394504954,1763644248448,-9478.84348341,0.00033815,2]
[394504955,1763644248457,-314.15449718,0.00033866,15]
[394504956,1763644248467,-686.30483252,0.00033869,2]
[394504957,1763644248480,-200.0,0.00033873,2]
[394504958,1763644248489,-751.86,0.00034751,30]
[394504959,1763644248499,-1500.0,0.00035,2]
[394504960,1763644248509,-1500.0,0.00035,2]
[394504961,1763644248519,-1500.0,0.00035,2]
[394504962,1763644248528,-1044.1,0.00035,2]
[394504963,1763644248538,-151.0,0.00035,2]
[394504964,1763644248547,-151.579,0.00035,2]
[394504965,1763644248557,-2000.0,0.000355,2]
[394504966,1763644248567,-177.32,0.00035593,2]
[394504967,1763644248576,-177.5,0.00035593,2]
[394504968,1763644248585,-355.0,0.00035593,2]
[394504969,1763644248594,-1018.28,0.00036,2]
[394504970,1763644248604,-166.0,0.00036,30]